[Event "10th Amsterdam Science Park 2022"]
[Site "Amsterdam"]
[Date "2022.07.23"]
[Round "6.10"]
[White "Stolwijk, Colin"]
[Black "Schilstra, Laurens"]
[Result "1-0"]
[ECO "B08"]
[WhiteElo "2277"]
[BlackElo "1993"]
[Annotator "TA"]
[PlyCount "163"]
[EventDate "2022.07.18"]
[EventCountry "NED"]
[SourceTitle "playchess.com"]
[Source "ChessBase"]
[SourceQuality "1"]
[TimeControl "5400+30"]

{[%evp 20,163,27,0,0,-4,19,24,69,60,59,36,43,16,54,45,80,33,45,50,63,59,67,54,84,72,92,85,76,86,136,146,142,120,108,104,108,109,164,151,166,166,155,152,237,240,296,215,210,210,331,337,333,338,306,328,340,340,336,313,339,331,411,352,581,581,581,581,573,562,518,287,510,510,29961,29962,29960,29962,29962,29963,29968,29968,29968,29968,29968,29967,29966,29967,29967,29967,29967,29969,29969,29970,29969,29970,29966,29967,29982,29974,29971,29974,29972,29975,29975,29975,29975,29976,29974,29977,29977,29978,29978,29978,29979,29980,29980,29981,29981,29982,29982,4141,29983,29984,29987,29986,29988,29987,29989,29990,29990,29990,29991,29990,29991,29992,29992,29992,29993,29994,29994,29995,29995,29996,29996,4153]} 1. e4 {[%emt 0:00:16] ChessBase II} g6 {[%emt 0:00:07]} 2. d4 {[%emt 0:00:05]} Bg7 {[%emt 0:00:03]} 3. Nf3 {[%emt 0:00:10]} d6 {[%emt 0:00:09]} 4. Be3 {[%emt 0:00:24]} Nf6 {[%emt 0:00:07]} 5. Nc3 {[%emt 0:00:05]} O-O {[%emt 0:02:11]} 6. Qd2 {[%emt 0:00:11]} e5 {[%emt 0:01:13]} 7. dxe5 {[%emt 0:13:24]} dxe5 {[%emt 0:02:00]} 8. Qxd8 {[%emt 0:00:04]} Rxd8 {[%emt 0:00:06]} 9. Bc4 {[%emt 0:00:08]} Nc6 {[%emt 0:06:58]} 10. O-O {[%emt 0:25:49]} h6 {[%emt 0:03:51]} 11. h3 {[%emt 0:01:00]} Ne8 {[%emt 0:02:25] B08: Pirc Defence: Classical System.} 12. Rad1 {[%emt 0:03:14] [#]} Nd6 $146 {[%emt 0:00:22]} ({Predecessor:} 12... Nd4 13. Bxd4 exd4 14. Ne2 Nd6 15. Bd3 c5 16. e5 Nf5 17. Nf4 g5 18. Nh5 Be6 19. Be4 {½-½ (44) Emms,J (2535)-Ftacnik,L (2595) Germany 1997 GER-chT [ChessBase II]}) 13. Bd5 {[%emt 0:02:08]} Kh7 {[%emt 0:02:32] White has an edge.} 14. Bxc6 {[%emt 0:02:57] White is more active.} bxc6 {[%emt 0:00:07]} 15. Nd2 {[%emt 0:00:12]} f5 {[%emt 0:02:24]} 16. f3 {[%emt 0:00:56]} f4 {[%emt 0:03:34]} 17. Bf2 {[%emt 0:00:33]} Be6 {[%emt 0:02:51]} 18. b3 {[%emt 0:00:57]} (18. Nb3 $16) 18... g5 {[%emt 0:00:42]} 19. Na4 {[%emt 0:04:15]} Bf7 {[%emt 0:03:05]} 20. Nb1 {[%emt 0:06:46]} h5 {[%emt 0:01:31]} 21. Nc5 {[%emt 0:01:50]} a5 {[%emt 0:03:44]} 22. a4 {[%emt 0:01:53]} Bh8 {[%emt 0:04:27]} 23. Rd3 {[%emt 0:02:39]} Rg8 {[%emt 0:00:19]} 24. Be1 {[%emt 0:02:39]} g4 {[%emt 0:01:33]} (24... Kg7 $142) 25. hxg4 $16 {[%emt 0:00:45]} hxg4 {[%emt 0:00:05]} 26. fxg4 {[%emt 0:01:11]} Rxg4 {[%emt 0:00:14]} 27. Rh3+ {[%emt 0:01:42]} Kg8 {[%emt 0:00:24]} 28. Bc3 {[%emt 0:01:53]} Bg7 {[%emt 0:02:13]} (28... Bg6 $16) 29. Nd2 $18 {[%emt 0:00:54][%cal Bb1d2,Bd2f3,Bf3e5][%mdl 32]} Bg6 {[%emt 0:00:26]} 30. Re1 {[%emt 0:02:36]} Nf7 {[%emt 0:09:32]} 31. Nf3 {[%emt 0:01:26]} Nd6 {[%emt 0:11:30]} (31... Ng5 $16 32. Nxg5 Rxg5) 32. Nxe5 {[%emt 0:04:15]} (32. Bxe5 Re8) 32... Rg5 {[%emt 0:00:14]} 33. Ned7 {[%emt 0:01:46] [#] And now Bxg7 would win. Pair of Knights!} Re8 {[%emt 0:02:04][%cal Rd6e4]} 34. e5 {[%emt 0:03:32]} Bxc2 {[%emt 0:06:28]} (34... Bf5 $142 35. Rf3 Rg4) 35. exd6 {[%emt 0:02:07]} ({Less strong is} 35. Bxa5 Bf5 36. Rf3 Re7 $18) 35... Rxe1+ {[%emt 0:00:07]} 36. Bxe1 {[%emt 0:00:02]} cxd6 {[%emt 0:00:25]} 37. Ne6 {[%emt 0:01:27]} Rd5 {[%emt 0:02:39]} 38. Nxg7 {[%emt 0:04:20]} ({Don't do} 38. Nxf4 Rd1) 38... Kxg7 {[%emt 0:00:05]} 39. Nb6 {[%emt 0:00:07]} Rg5 {[%emt 0:02:52]} 40. Rf3 {[%emt 0:07:32]} Rg4 {[%emt 0:03:02]} 41. g3 {[%emt 0:00:00]} fxg3 $2 {[%emt 0:00:00]} (41... Rg6 42. Rxf4 Bxb3 43. Bc3+ Kh6 44. Rh4+ Kg5 45. Bxa5 Bc2 46. Bd2+ Kf5) 42. Rxg3 {[%emt 0:00:00]} Rxg3+ {[%emt 0:00:00]} 43. Bxg3 {[%emt 0:00:00]} Bxb3 {[%emt 0:00:00]} 44. Bxd6 {[%emt 0:00:00]} Kf6 {[%emt 0:00:00]} 45. Bc5 {[%emt 0:00:00] [#] Threatens to win with Kf2.} Ke6 $2 {[%emt 0:00:00]} (45... Kf7 46. Kf2 Ke8) 46. Kf2 {[%emt 0:00:00]} Bxa4 {[%emt 0:00:00]} (46... Bc2 $18 47. Ke2 Bg6) 47. Nxa4 {[%emt 0:00:00]} Kd5 {[%emt 0:00:00]} 48. Ke3 {[%emt 0:00:00]} Kc4 {[%emt 0:00:00]} 49. Bf8 {[%emt 0:00:00]} c5 {[%emt 0:00:00]} 50. Nxc5 {[%emt 0:00:00]} Kb5 {[%emt 0:00:00]} 51. Kd3 {[%emt 0:00:00]} a4 {[%emt 0:00:00]} 52. Kc3 {[%emt 0:00:00]} a3 {[%emt 0:00:00]} 53. Kb3 {[%emt 0:00:00]} a2 {[%emt 0:00:00]} 54. Kxa2 {[%emt 0:00:00]} Kb4 {[%emt 0:00:00]} 55. Kb2 {[%emt 0:00:00]} Kc4 {[%emt 0:00:00]} 56. Kc2 {[%emt 0:00:00]} Kd4 {[%emt 0:00:00]} 57. Kd2 {[%emt 0:00:00]} Kc4 {[%emt 0:00:00]} 58. Ke3 {[%emt 0:00:00]} Kc3 {[%emt 0:00:00]} 59. Nd3 {[%emt 0:00:00]} Kc4 {[%emt 0:00:00]} 60. Ke4 {[%emt 0:00:00]} Kb5 {[%emt 0:00:00]} 61. Kd5 {[%emt 0:00:00]} Kb6 {[%emt 0:00:00]} 62. Kc4 {[%emt 0:00:00]} Kc6 {[%emt 0:00:00]} 63. Ne5+ {[%emt 0:00:00]} Kb6 {[%emt 0:00:00]} 64. Bd6 {[%emt 0:00:00]} Ka6 {[%emt 0:00:00]} 65. Nd7 {[%emt 0:00:00]} Kb7 {[%emt 0:00:00]} 66. Kd5 {[%emt 0:00:00]} Ka7 {[%emt 0:00:00]} 67. Kc6 {[%emt 0:00:16]} Ka8 {[%emt 0:00:00]} 68. Nb6+ {[%emt 0:00:09]} Ka7 {[%emt 0:00:00]} 69. Be5 {[%emt 0:00:07]} Ka6 {[%emt 0:00:00]} 70. Bb8 {[%emt 0:00:07]} Ka5 {[%emt 0:00:00]} 71. Nd5 {[%emt 0:00:31] White mates.} Ka6 {[%emt 0:00:00]} 72. Nb4+ {[%emt 0:00:10]} Ka5 {[%emt 0:00:00]} 73. Kc5 {[%emt 0:00:05]} Ka4 {[%emt 0:00:00]} 74. Kc4 {[%emt 0:00:10]} Ka5 {[%emt 0:00:00]} 75. Bc7+ {[%emt 0:00:07]} Ka4 {[%emt 0:00:00]} 76. Bb6 {[%emt 0:00:15]} Ka3 {[%emt 0:00:00]} 77. Nd3 {[%emt 0:00:35]} Ka4 {[%emt 0:00:00]} 78. Nb2+ {[%emt 0:00:08]} Ka3 {[%emt 0:00:00]} 79. Kc3 {[%emt 0:00:04]} Ka2 {[%emt 0:00:00]} 80. Kc2 {[%emt 0:00:31]} Ka3 {[%emt 0:00:00]} 81. Bc5+ {[%emt 0:00:34]} Ka2 {[%emt 0:00:00]} 82. Nd3 {[%emt 0:00:11] Weighted Error Value: White=0.12 (very precise) /Black=0.45} 1-0

[Event "10th Amsterdam Science Park 2022"]
[Site "Amsterdam"]
[Date "2022.07.24"]
[Round "7.1"]
[White "Van Delft, Merijn"]
[Black "Blom, Vincent"]
[Result "1/2-1/2"]
[ECO "B02"]
[WhiteElo "2383"]
[BlackElo "2325"]
[Annotator "TA"]
[PlyCount "41"]
[EventDate "2022.07.18"]
[EventCountry "NED"]
[SourceTitle "playchess.com"]
[Source "ChessBase"]
[SourceQuality "1"]
[TimeControl "5400+30"]

{[%evp 9,41,51,79,41,41,30,25,24,33,23,22,21,22,18,41,33,45,36,23,16,28,28,28,34,93,76,77,77,113,7,9,5,14,17]} 1. e4 {[%emt 0:00:09]} Nf6 {[%emt 0:10:41]} 2. e5 {[%emt 0:01:11]} Ng8 {[%emt 0:00:14]} 3. d4 {[%emt 0:01:34]} d6 {[%emt 0:00:09]} 4. Nf3 {[%emt 0:00:51]} dxe5 {[%emt 0:01:00]} 5. Nxe5 {[%emt 0:00:24]} Nd7 {[%emt 0:00:04]} 6. Nf3 {[%emt 0:04:10] 0x0.00144a0789a0dp-1022s more active pieces. B02: Alekhine's Defence: Chase Variation and lines with early Nc3.} (6. Bd3 {with more complications.} g6 7. Qe2 Bg7 8. O-O) 6... Ngf6 {[%emt 0:01:07]} 7. c4 {[%emt 0:02:46]} e6 {[%emt 0:02:23]} 8. Nc3 {[%emt 0:00:24] White has an edge.} b6 {[%emt 0:07:59]} 9. Be2 {[%emt 0:01:26]} Bb7 {[%emt 0:01:29]} 10. O-O {[%emt 0:01:26]} Be7 {[%emt 0:17:16]} 11. Bf4 {[%emt 0:03:50] [#]} Ne4 $146 {[%emt 0:12:52]} ({Predecessor:} 11... O-O 12. Qd3 Nh5 13. Bc1 Nhf6 14. Bf4 Nh5 15. Be3 Nhf6 16. Rad1 c5 17. Ne5 Rc8 {1-0 (62) Piorun,K (2631)-Berkes,F (2666) Skopje 2019}) 12. Nxe4 {[%emt 0:02:54]} Bxe4 {[%emt 0:01:05]} 13. Qa4 {[%emt 0:06:04]} O-O {[%emt 0:05:35]} 14. Rfd1 {[%emt 0:02:43]} a6 {[%emt 0:09:18]} 15. Rac1 {[%emt 0:01:25]} b5 {[%emt 0:06:48]} 16. Qa5 {[%emt 0:09:25]} bxc4 {[%emt 0:03:00]} ({Black should play} 16... c6 $14 17. Qc3 Rc8) 17. Bxc7 $16 {[%emt 0:01:26]} Qc8 {[%emt 0:00:12]} 18. Nd2 {[%emt 0:03:50]} Bc6 {[%emt 0:04:36]} 19. Bf3 {[%emt 0:12:16]} ({Of course not} 19. Bxc4 $6 Qb7 20. Bf4 Bxg2 $11) (19. Rxc4 $6 Bb5 $11) (19. Nxc4 $16 {Strongly threatening Bd6.} Qb7 20. Nd6 Bxd6 21. Bxd6) 19... Bxf3 $11 {[%emt 0:01:09]} 20. Nxf3 {[%emt 0:00:13]} Qb7 {[%emt 0:00:28]} 21. Rxc4 {[%emt 0:05:12] Weighted Error Value: White=0.17 (very precise) /Black=0.11 (very precise)} 1/2-1/2

[Event "10th Amsterdam Science Park 2022"]
[Site "Amsterdam"]
[Date "2022.07.24"]
[Round "7.2"]
[White "De Winter, Arthur"]
[Black "Bosboom, Manuel"]
[Result "1-0"]
[ECO "B94"]
[WhiteElo "2150"]
[BlackElo "2381"]
[Annotator "TA"]
[PlyCount "81"]
[EventDate "2022.07.18"]
[EventCountry "NED"]
[SourceTitle "playchess.com"]
[Source "ChessBase"]
[SourceQuality "1"]
[TimeControl "5400+30"]

{[%evp 11,81,17,28,9,16,14,18,13,14,16,23,0,-6,-6,7,-20,0,-18,-23,-22,-4,-20,-22,-27,-37,-40,52,-223,-234,-304,-297,-302,-287,-592,-577,-566,-503,-694,0,0,0,0,0,10,84,75,599,595,563,539,883,854,943,865,12836,12836,12834,5910,12837,12838,12838,12839,12839,12839,12840,12840,12841,12841,12841,12842,29994,29995]} 1. e4 {[%emt 0:00:03]} c5 {[%emt 0:00:41]} 2. Nf3 {[%emt 0:00:05]} d6 {[%emt 0:01:13]} 3. d4 {[%emt 0:00:04]} cxd4 {[%emt 0:00:06]} 4. Nxd4 {[%emt 0:00:04]} Nf6 {[%emt 0:00:22]} 5. Nc3 {[%emt 0:00:05]} a6 {[%emt 0:00:17]} 6. Bg5 {[%emt 0:00:06]} Nbd7 {[%emt 0:04:52]} 7. Qe2 $1 {[%emt 0:00:16][%mdl 4] 7.Qe2 is setting a new trend. B94: Sicilian Najdorf: 6 Bg5 Nbd7.} h6 {[%emt 0:05:00]} 8. Bh4 {[%emt 0:00:15]} g6 {[%emt 0:17:16]} 9. O-O-O {[%emt 0:03:49] The position is equal.} e5 {[%emt 0:06:31]} 10. Nb3 {[%emt 0:13:21][%cal Of2f4]} Be7 {[%emt 0:01:33]} 11. g4 {[%emt 0:08:54]} b5 {[%emt 0:04:55]} 12. a3 {[%emt 0:03:03]} Qc7 {[%emt 0:05:20]} 13. Bg2 {[%emt 0:03:43][%cal Of2f4]} Nb6 {[%emt 0:02:03]} 14. h3 {[%emt 0:03:40][%cal Of2f4] [#]} Be6 $146 {[%emt 0:01:23]} ({Predecessor:} 14... Na4 15. Bxf6 Bxf6 16. Nd5 Qd8 17. Nxf6+ Qxf6 18. Qd2 O-O 19. Qxh6 Qxf2 20. Rd2 Qg3 21. Rxd6 Qxg2 22. Rxg6+ {½-½ (22) Andronescu,M (2122)-Szabo,G (2524) Eforie Nord 2022}) 15. f4 {[%emt 0:02:26]} O-O {[%emt 0:13:31]} 16. f5 {[%emt 0:15:15]} Bc4 {[%emt 0:01:02]} 17. Qe3 {[%emt 0:04:43]} g5 {[%emt 0:02:28]} 18. Bf2 {[%emt 0:02:26]} Rfb8 {[%emt 0:02:18]} (18... Na4 $15) 19. Kb1 $2 {[%emt 0:04:55][%mdl 8192]} (19. Na5 $1 $14 {was forced to keep a grip.}) 19... a5 $1 $19 {[%emt 0:01:15]} 20. Nd5 {[%emt 0:06:02] Prevents b4.} Bxd5 {[%emt 0:04:18]} 21. exd5 {[%emt 0:00:07]} b4 {[%emt 0:00:37] Strongly threatening ...Nc4.} 22. h4 $2 {[%emt 0:03:45]} (22. a4) 22... Nxg4 {[%emt 0:10:29] Pair of Knights!} 23. Qg3 {[%emt 0:00:18]} Nxf2 {[%emt 0:00:43]} 24. hxg5 {[%emt 0:00:59] [#]} hxg5 {[%emt 0:02:44]} 25. f6 $1 $11 {[%emt 0:11:39] Chess con chili.} Bxf6 {[%emt 0:00:03]} 26. Qxf2 {[%emt 0:00:05]} Qe7 {[%emt 0:02:25] ...bxa3 is the strong threat.} 27. a4 {[%emt 0:04:09] Threatens to win with Rdf1.} Bg7 {[%emt 0:01:40]} (27... e4 $1 $11 {remains equal.} 28. Rdf1 Nxd5) 28. Qf5 $40 {[%emt 0:01:46][%mdl 128] White goes for the king. White is much more active.} Nxa4 $2 {[%emt 0:01:38][%mdl 8192]} ({Much worse is} 28... Kf8 29. Rdf1 $11) (28... e4 $16 {prevents the worst.}) 29. Be4 $18 {[%emt 0:01:08][%cal Oh1h8] Threatening mate with Rh8+!} ({Not} 29. Rh5 Nxb2 $1 30. Kxb2 a4 $11) 29... Kf8 {[%emt 0:01:10][%cal Oa4b2] aiming for ...Nxb2!} 30. Rdf1 {[%emt 0:00:53]} Nc3+ {[%emt 0:01:26]} 31. bxc3 {[%emt 0:00:09]} bxc3 {[%emt 0:00:21]} 32. Rh7 {[%emt 0:00:27][%cal Oh7g7] Intending Rxg7! and mate.} f6 {[%emt 0:00:49]} 33. Rfh1 {[%emt 0:00:42] Rh8+ would kill now.} Qf7 {[%emt 0:00:33] [#]} 34. R1h6 {[%emt 0:02:39]} (34. Rxg7 $142 $1 {[%mdl 512]} Qxg7 35. Rh7) 34... a4 {[%emt 0:02:24] [#]} 35. Rxg7 $1 {[%emt 0:00:21][%mdl 576] Remove Defender} Qxg7 {[%emt 0:00:07]} 36. Rxf6+ {[%emt 0:00:04]} Ke8 {[%emt 0:01:14]} 37. Re6+ {[%emt 0:00:59]} Kd8 {[%emt 0:00:10]} 38. Rxd6+ {[%emt 0:00:10]} Kc7 {[%emt 0:00:09]} 39. Rc6+ {[%emt 0:00:34]} Kd8 {[%emt 0:00:09]} 40. Rg6 {[%emt 0:04:37]} Qd7 {[%emt 0:03:26]} 41. Qf8+ {[%emt 0:00:22] Weighted Error Value: White=0.42/Black=0.82} 1-0

[Event "10th Amsterdam Science Park 2022"]
[Site "Amsterdam"]
[Date "2022.07.24"]
[Round "7.3"]
[White "Zwirs, Nico"]
[Black "Van der Poel, Henk"]
[Result "1-0"]
[ECO "B67"]
[WhiteElo "2485"]
[BlackElo "2210"]
[Annotator "TA"]
[PlyCount "47"]
[EventDate "2022.07.18"]
[EventCountry "NED"]
[SourceTitle "playchess.com"]
[Source "ChessBase"]
[SourceQuality "1"]
[TimeControl "5400+30"]

{[%evp 21,47,12,20,29,37,37,44,48,50,45,54,37,172,175,184,179,237,239,258,241,280,280,331,337,748,722,669,598]} 1. e4 {[%emt 0:00:01]} c5 {[%emt 0:00:33]} 2. Nf3 {[%emt 0:00:02]} d6 {[%emt 0:00:29]} 3. d4 {[%emt 0:00:04]} cxd4 4. Nxd4 {[%emt 0:00:02]} Nf6 {[%emt 0:00:23]} 5. Nc3 {[%emt 0:00:02]} Nc6 {[%emt 0:00:33]} 6. Bg5 {[%emt 0:01:46]} e6 {[%emt 0:00:41]} 7. Qd2 {[%emt 0:00:04]} a6 {[%emt 0:00:54]} 8. O-O-O {[%emt 0:01:34]} Bd7 {[%emt 0:00:29]} 9. Kb1 {[%emt 0:00:06]} Be7 {[%emt 0:04:17]} 10. Nxc6 {[%emt 0:01:22]} Bxc6 {[%emt 0:02:02]} 11. f3 {[%emt 0:00:27]} b5 {[%emt 0:12:45]} 12. h4 {[%emt 0:01:01] B67: Sicilian: Richter-Rauzer: 7...a6 8 0-0-0 Bd7, lines without 9 f4 Be7.} Qc7 {[%emt 1:13:24] 12...h6 is a critical line.} 13. Ne2 {[%emt 0:00:51]} h5 {[%emt 0:00:00]} 14. Nd4 {[%emt 0:08:05] White is slightly better.} Bd7 {[%emt 0:00:00]} 15. Bd3 {[%emt 0:04:59] [#]} Qb6 $146 {[%emt 0:00:00]} ({Predecessor:} 15... Rb8 16. Qe2 g6 17. f4 e5 18. Nf3 Ng4 19. f5 f6 20. Bd2 gxf5 21. exf5 d5 {0-1 (41) Chytilek,R (2397)-Belunek,V (2233) Czech Republic 2000}) 16. Ne2 {[%emt 0:11:45]} O-O-O {[%emt 0:00:00]} (16... b4 $14) 17. Be3 $18 {[%emt 0:07:08]} Qb7 {[%emt 0:00:00]} 18. Qa5 $36 {[%emt 0:00:48][%mdl 2048] And now c4 would win. White is in control.} Kb8 {[%emt 0:00:00]} (18... d5 {keeps fighting.}) 19. c4 {[%emt 0:03:37] cxb5 is the strong threat.} Rc8 {[%emt 0:00:00] [#]} 20. cxb5 {[%emt 0:01:52]} Bxb5 {[%emt 0:00:00] [#]} 21. Nd4 $1 {[%emt 0:00:58]} Bd8 {[%emt 0:00:00]} 22. Qa3 {[%emt 0:00:35] Strongly threatening Bxb5.} Be7 $2 {[%emt 0:00:00]} (22... Bb6 23. Nxb5 axb5) 23. Nxb5 {[%emt 0:03:21]} axb5 {[%emt 0:00:00] [#]} 24. Bxb5 $1 {[%emt 0:00:19][%mdl 512] White took control after the opening.  Weighted Error Value: White=0.01 (flawless) /Black=0.39} 1-0

[Event "10th Amsterdam Science Park 2022"]
[Site "Amsterdam"]
[Date "2022.07.24"]
[Round "7.4"]
[White "Kumar, Prajit Sai"]
[Black "De Groote, Ewoud"]
[Result "1/2-1/2"]
[ECO "D02"]
[WhiteElo "2040"]
[BlackElo "2245"]
[Annotator "TA"]
[PlyCount "110"]
[EventDate "2022.07.18"]
[EventCountry "NED"]
[SourceTitle "playchess.com"]
[Source "ChessBase"]
[SourceQuality "1"]
[TimeControl "5400+30"]

{[%evp 9,110,0,0,6,15,-2,0,0,0,0,0,0,16,20,15,12,19,32,47,48,82,82,94,80,73,77,102,101,105,99,201,204,197,127,123,122,120,81,88,54,161,160,154,162,164,149,147,133,130,130,133,131,135,119,119,114,178,159,158,180,191,146,225,198,218,185,186,166,154,143,165,141,140,96,108,108,104,75,106,41,41,35,39,37,37,16,12,10,10,10,10,7,39,39,41,0,0,0,0,0,0,0,0]} 1. d4 {[%emt 0:00:01]} Nf6 {[%emt 0:00:06]} 2. Nf3 {[%emt 0:00:01]} e6 {[%emt 0:00:13]} 3. Bf4 {[%emt 0:00:05]} d5 {[%emt 0:00:16]} 4. c3 {[%emt 0:00:05]} Bd6 {[%emt 0:01:05]} 5. e3 {[%emt 0:00:06]} O-O {[%emt 0:00:52]} 6. Nbd2 {[%emt 0:00:09] D02: 1 d4 d5 2 Nf3 sidelines, including 2...Nf6 3 g3 and 2...Nf6 3 Bf4.} c5 {[%emt 0:01:33]} 7. Bg3 {[%emt 0:00:15]} Qc7 {[%emt 0:07:38]} 8. dxc5 {[%emt 0:01:47]} Qxc5 {[%emt 0:04:57]} 9. Bd3 {[%emt 0:00:21]} Nbd7 {[%emt 0:09:45]} 10. Qe2 {[%emt 0:00:50]} e5 {[%emt 0:16:55] [#] aiming for ...e4.} 11. e4 {[%emt 0:00:18]} Re8 {[%emt 0:01:52]} 12. O-O {[%emt 0:04:43]} dxe4 {[%emt 0:06:56]} 13. Bxe4 {[%emt 0:01:01] [#]} Bf8 $146 {[%emt 0:06:45]} ({Predecessor:} 13... Nf8 14. Bh4 Nxe4 15. Nxe4 Qc7 16. Rad1 Be7 17. Bxe7 Rxe7 18. Nd6 Ng6 19. Nb5 Qc6 {1-0 (58) Bharath,S (2508)-Zierk,S (2488) Chess.com INT 2022}) 14. Bc2 {[%emt 0:04:03]} g6 {[%emt 0:11:37]} 15. Rfe1 {[%emt 0:01:11]} Bg7 {[%emt 0:01:35]} 16. Ng5 {[%emt 0:11:38]} (16. Nxe5 Nxe5 17. Bxe5 Nd7 $15) 16... h6 {[%emt 0:08:42]} 17. Nge4 {[%emt 0:00:57]} (17. Nxf7 {is interesting.} Kxf7 18. Bb3+ Kf8 19. Qd3) 17... Nxe4 {[%emt 0:00:52]} 18. Nxe4 {[%emt 0:00:11]} (18. Qxe4 $6 Nf6 19. Qf3 Bd7 $11) 18... Qb6 {[%emt 0:01:38]} 19. Rad1 {[%emt 0:01:47] And now Bb3 would win.} Nc5 {[%emt 0:03:14] Against Bb3} (19... Nf8 $16 {was necessary.}) 20. Nd6 $18 {[%emt 0:16:37]} Re7 {[%emt 0:06:42]} 21. Nc4 {[%emt 0:02:42]} (21. b4 $18) 21... Qa6 {[%emt 0:02:54]} 22. Rd8+ {[%emt 0:10:42]} (22. Bxe5 $6 Bd7 $11) 22... Kh7 {[%emt 0:00:05][%cal Oc8g4] Strongly threatening ...Bg4!} 23. Rd6 {[%emt 0:08:24] White is more active.} (23. Bxe5 {[#]} Bg4 $1 24. Qxg4 Rxd8 $17) 23... b6 {[%emt 0:02:42]} 24. b4 {[%emt 0:09:15]} (24. Bxe5 $6 Bf5 25. Bxf5 gxf5 $11) 24... Be6 {[%emt 0:00:31]} (24... Na4 $1 $14) 25. Nxe5 {[%emt 0:01:41]} (25. bxc5 Qxc4 26. Qxc4 (26. Bxe5 $2 Qxe2 27. Rxe2 Bc4 $19) (26. cxb6 Qc5 $11) 26... Bxc4 $11) 25... Qxe2 {[%emt 0:00:41]} 26. Rxe2 {[%emt 0:00:06]} Bc4 {[%emt 0:01:41]} 27. Re3 {[%emt 0:00:55]} ({Wrong is} 27. Nxc4 $2 Rxe2 28. Ne3 Re1+ 29. Nf1 Ne4 30. Bxe4 Rxe4 $19) 27... Bxe5 {[%emt 0:00:21]} 28. Bxe5 {[%emt 0:00:37]} Rae8 {[%emt 0:00:48]} 29. Bd4 {[%emt 0:02:34] A strong pair of Bishops.} ({Don't do} 29. bxc5 Rxe5 30. c6 (30. cxb6 axb6 31. Bb3 Rxe3 $14) 30... Rxe3 31. fxe3 Bxa2 $14) 29... Ne4 {[%emt 0:00:59]} 30. Bxe4 {[%emt 0:01:09]} Rxe4 {[%emt 0:00:01]} 31. a4 {[%emt 0:00:40]} Rxe3 {[%emt 0:00:48]} 32. fxe3 $16 {[%emt 0:00:11][%cal Bf2e3,Be3e4][%mdl 4128] Endgame KRB-KRB} Rc8 {[%emt 0:00:59] Prevents Rc6.} (32... Be6 $16 {is a better defense.} 33. a5 bxa5) 33. Rd7 $18 {[%emt 0:00:53]} Ra8 {[%emt 0:00:38]} 34. Rc7 {[%emt 0:00:32]} Be6 {[%emt 0:00:18]} 35. Kf2 {[%emt 0:01:33]} g5 {[%emt 0:00:26]} (35... Kg8 $16 {was worth a try.} 36. c4 Kf8) 36. e4 {[%emt 0:01:03]} Kg6 {[%emt 0:00:26]} 37. Ke3 {[%emt 0:00:15]} h5 {[%emt 0:00:42]} 38. Kd3 {[%emt 0:00:43]} f5 {[%emt 0:00:25]} 39. exf5+ {[%emt 0:02:12]} Kxf5 {[%emt 0:00:21]} 40. Re7 {[%emt 0:01:48]} h4 {[%emt 0:00:41]} 41. Ke3 {[%emt 0:02:30]} Bc4 {[%emt 0:00:00]} 42. Re5+ {[%emt 0:00:00]} Kg6 {[%emt 0:00:00]} 43. Kd2 {[%emt 0:00:00]} Rd8 {[%emt 0:00:00]} 44. Ke1 {[%emt 0:00:00]} (44. Re7 $16) 44... Rf8 $14 {[%emt 0:00:00]} 45. Bf2 {[%emt 0:00:00]} Rf6 {[%emt 0:00:00]} 46. a5 {[%emt 0:00:00]} bxa5 {[%emt 0:00:00]} 47. bxa5 {[%emt 0:00:00]} (47. Be3 $5 {[%cal Re5g5]}) 47... a6 {[%emt 0:00:00]} 48. Be3 {[%emt 0:00:00]} Rf5 {[%emt 0:00:00]} 49. Rxf5 {[%emt 0:00:00]} Kxf5 $11 {[%emt 0:00:00] KB-KB} 50. Kf2 {[%emt 0:00:00]} Bd5 {[%emt 0:00:00]} 51. Bb6 {[%emt 0:00:00]} g4 {[%emt 0:00:00][%cal Bg5g4,Bg4g3][%mdl 32]} 52. h3 {[%emt 0:00:00]} g3+ {[%emt 0:00:00] The position is equal.} 53. Kf1 {[%emt 0:00:00]} Bc4+ {[%emt 0:00:00]} 54. Kg1 {[%emt 0:00:00] Threatens to win with Bd8.} Kg6 {[%emt 0:00:02]} 55. Bd8 {[%emt 0:00:00]} Kh5 {[%emt 0:00:01] Blacks defense is rewarded with a draw.  Weighted Error Value: White=0.13 (very precise) /Black=0.12 (very precise)} 1/2-1/2